{"text_format":"1","workbook":"xlsx","n_sheets":7,"sheets":["Directions","Data Entry Sheet","Sheet1","Sheet3","Sort Sheet","Sort Sheet UPDIF","Walk Ups"],"not_rendered":{"charts":0,"images":0,"macros":1,"external_links":0,"defined_names":1,"comments":0,"pivot_tables":0},"unopened":[],"bounds":{"document_bytes":16777216,"sheet_cells":100000,"rows_first":2000,"rows_last":500,"rows_between":2000,"halvings":0,"cell_chars":16384,"cell_head_chars":4096},"cells_cut":0,"cells_raw":0,"read":"whole","date_system":"1900"}

{"sheet":"Directions","index":0,"n_rows":20,"n_cols":1,"rows_kept":20,"cut":false,"hidden":false,"merged":[]}
["1) Double check data on scoresheet"]
["2)  Fill out all white cells - do not leave any blank as data is required for assessing achievements earned and in case a tie breaker is needed"]
["If no UDT # ensure full names are used for handler and proper spelling for dog"]
["To determine placements:"]
["3) Go to sort sheet, place cursor in yellow box, press button to sort"]
["4) Review missed catches and missed obstacle data for tie breakers"]
["If need be a clear data button is available in the total column to clear the sort sheet of previous data"]
[]
["Do not rearrange any columns, do not delete the example row!"]
["Save this form as the Event name, date, game (Example:  PlantCity2-8-15TimeWarp)"]
["Email to results@updogchallenge.com within 10 days of event"]
[]
["Tie Breaker for Time Warp:"]
["For teams that have the same number of points, the judges will use the competitors’ finishing time to the nearest "]
["hundredth of a second to break the tie. If that doesn’t break the tie (What are the odds of that?), use the criteria below."]
["Each team will get one disc and 60 seconds to complete a catch in one of the three mandatory zones (0-10, 10-20, Sweet "]
["Spot). Time stops when human, dog, and disc are behind the starting line. A catch in the 0-10 zone beats no catch. A "]
["catch in the 10-20 zone beats a 0-10 catch. A Sweet Spot catch beats a catch in any other zone. If both teams make the "]
["catch in the same zone, the team with the fastest time wins the tiebreaker."]
["Foot Fault rules apply. Any quick game of chance can determine throwing order."]

{"sheet":"Data Entry Sheet","index":1,"n_rows":298,"n_cols":15,"rows_kept":298,"cut":false,"hidden":false,"merged":[[0,0,0,13]]}
["Time Warp Data Entry"]
["Level ","Handler (First and Last Name)","Dog","UDT #\n(this is the UpDog Team # not the competitor #)","Remaining Time/Finishing time (nearest 100th of a second - Use 0 if they Did Not Finish)","# of seconds remaining","# of Misses","# of zone catches","Sweet Shot Double Shot Completed Successfully? (MUST have time remaining to get the SSDS points)","SSDS Points","Total for Zones","Were all throws thrown as Rollers           Y or N?","High Roller","Golden Receiver","Division"]
[1,"Example","Uppy D",null,0,{"$f":"ROUND(E3,0)","v":0},0,2,"N",{"$f":"IF(I3=\"Y\",25,0)","v":0},{"$f":"IF(H3>2,H3*5+F3+J3,H3*5)","v":10},"N",{"$f":"IF(AND(H3>2,L3=\"Y\"),\"Yes\",\"No\")","v":"No"},{"$f":"IF(AND(G3>0),\"No\",\"Yes\")","v":"Yes"},"MIDI"]
[1,"Example","Uppy D",null,19.52,20,0,3,"N",{"$f":"IF(I4=\"Y\",25,0)","v":0},{"$f":"IF(H4>2,H4*5+F4+J4,H4*5)","v":35},"Y",{"$f":"IF(AND(H4>2,L4=\"Y\"),\"Yes\",\"No\")","v":"Yes"},{"$f":"IF(AND(G4>0),\"No\",\"Yes\")","v":"Yes"},"MIDI"]
[1,"Tammy Bonas","Tac","T8932181",9.6300000000000008,10,3,3,"N",0,{"$f":"IF(H5>2,H5*5+F5+J5,H5*5)","v":25},"N",{"$f":"IF(AND(H5>2,L5=\"Y\"),\"Yes\",\"No\")","v":"No"},{"$f":"IF(AND(G5>0),\"No\",\"Yes\")","v":"No"}]
[1,"Finn Proctor","Tango","T30544231",9.15,9,5,3,"N",0,24,"N","No","No"]
[1,"Sam Marion","GIR","T20779220",4.75,5,4,3,"N",0,20,"N","No","No"]
[1,"Silver Alfriker","Bisha","T26466233",0,0,3,2,"N",0,10,"N","No","No"]
[1,"Jeff Love","Rhapsody","T13736205",0,0,5,0,"N",0,0,"N","No","No"]
[1,"Zoey Proctor","Figment","T29478231",0,0,6,2,"N",0,10,"N","No","No"]
[1,"Finn Proctor","Figment","T26447235",0,0,2,3,"N",0,15,"N","No","No"]
[1,"Tammy Bonas","Bo","T26447235",0,0,3,3,"N",0,15,"N","No","No"]
[1,"Jennifer Bale O' Connell","Chili","T10144199",0,0,0,3,"N",0,15,"N","No","Yes"]
[1,"Rachel Hoar","Nacho","T16237214",0,0,4,2,"N",0,10,"N","No","No"]
[1,"Tracy Love"," Rhythm","T10175199",0,0,6,2,"N",0,10,"N","No","No"]
[1,"Jennifer Bale O' Connell","Mayday","T24346222",0,0,2,2,"N",0,10,"N","No","No"]
[1,"Ashley Rogers","Oakley","T30961243",0,0,4,1,"N",0,5,"N","No","No"]
[1,"Marisa Finan-Goode","Kite","T21413223",14.39,14,2,3,"N",0,29,"N","No","No"]
[1,"Frank Montgomery","Jagger","T12683192",44.49,44,0,3,"Y",25,84,"N","No","Yes"]
[1,"Tara Moriarty","Draak","T29181235",33.18,33,0,3,"N",0,48,"Y","Yes","Yes"]
[1,"Finn Proctor","Rumor","T29480237",22.6,23,1,3,"N",0,38,"N","No","No"]
[1,null,null,null,null,null,null,null,null,0,0,null,"No","Yes"]
[1,null,null,null,null,null,null,null,null,0,0,null,"No","Yes"]
[1,null,null,null,null,null,null,null,null,0,0,null,"No","Yes"]
[1,null,null,null,null,null,null,null,null,0,0,null,"No","Yes"]
[1,null,null,null,null,null,null,null,null,0,0,null,"No","Yes"]
[1,null,null,null,null,null,null,null,null,0,0,null,"No","Yes"]
[1,null,null,null,null,null,null,null,null,0,0,null,"No","Yes"]
[1,null,null,null,null,null,null,null,null,0,0,"Y","No","Yes"]
[1,null,null,null,null,null,null,null,null,0,0,null,"No","Yes"]
[1,null,null,null,null,null,null,null,null,0,0,null,"No","Yes"]
[1,null,null,null,null,null,null,null,null,0,0,null,"No","Yes"]
[1,null,null,null,null,null,null,null,null,0,0,null,"No","Yes"]
[1,null,null,null,null,null,null,null,null,0,0,null,"No","Yes"]
[1,null,null,null,null,null,null,null,null,0,0,null,"No","Yes"]
[1,null,null,null,null,null,null,null,null,0,0,null,"No","Yes"]
[1,null,null,null,null,null,null,null,null,0,0,null,"No","Yes"]
[1,null,null,null,null,null,null,null,null,0,0,null,"No","Yes"]
[1,null,null,null,null,null,null,null,null,0,0,null,"No","Yes"]
[1,null,null,null,null,null,null,null,null,0,0,null,"No","Yes"]
[1,null,null,null,null,null,null,null,null,0,0,null,"No","Yes"]
[1,null,null,null,null,null,null,null,null,0,0,null,"No","Yes"]
[1,null,null,null,null,null,null,null,null,0,0,null,"No","Yes"]
[1,null,null,null,null,null,null,null,null,0,0,null,"No","Yes"]
[1,null,null,null,null,null,null,null,null,0,0,null,"No","Yes"]
[1,null,null,null,null,null,null,null,null,0,0,null,"No","Yes"]
[1,null,null,null,null,null,null,null,null,0,0,null,"No","Yes"]
[1,null,null,null,null,null,null,null,null,0,0,null,"No","Yes"]
[1,null,null,null,null,null,null,null,null,0,0,null,"No","Yes"]
[1,null,null,null,null,null,null,null,null,0,0,null,"No","Yes"]
[1,null,null,null,null,null,null,null,null,0,0,null,"No","Yes"]
[1,null,null,null,null,null,null,null,null,0,0,null,"No","Yes"]
[1,null,null,null,null,null,null,null,null,0,0,null,"No","Yes"]
[1,null,null,null,null,null,null,null,null,0,0,null,"No","Yes"]
[1,null,null,null,null,null,null,null,null,0,0,null,"No","Yes"]
[1,null,null,null,null,null,null,null,null,0,0,null,"No","Yes"]
[1,null,null,null,null,null,null,null,null,0,0,null,"No","Yes"]
[1,null,null,null,null,null,null,null,null,{"$f":"IF(I58=\"Y\",25,0)","v":0},0,null,"No","Yes"]
[1,null,null,null,null,null,null,null,null,0,0,null,"No","Yes"]
[1,null,null,null,null,null,null,null,null,0,{"$f":"IF(H60>2,H60*5+F60+J60,H60*5)","v":0},null,{"$f":"IF(AND(H60>2,L60=\"Y\"),\"Yes\",\"No\")","v":"No"},{"$f":"IF(AND(G60>0),\"No\",\"Yes\")","v":"Yes"}]
[1,null,null,null,null,null,null,null,null,0,0,null,"No","Yes"]
[1,null,null,null,null,null,null,null,null,0,0,null,"No","Yes"]
[1,null,null,null,null,null,null,null,null,0,0,null,"No","Yes"]
[1,null,null,null,null,null,null,null,null,0,0,null,"No","Yes"]
[1,null,null,null,null,null,null,null,null,0,0,null,"No","Yes"]
[1,null,null,null,null,null,null,null,null,0,0,null,"No","Yes"]
[1,null,null,null,null,null,null,null,null,0,0,null,"No","Yes"]
[1,null,null,null,null,null,null,null,null,0,0,null,"No","Yes"]
[1,null,null,null,null,null,null,null,null,0,0,null,"No","Yes"]
[1,null,null,null,null,null,null,null,null,0,0,null,"No","Yes"]
[1,null,null,null,null,null,null,null,null,0,0,null,"No","Yes"]
[1,null,null,null,null,null,null,null,null,0,0,null,"No","Yes"]
[1,null,null,null,null,null,null,null,null,0,0,null,"No","Yes"]
[1,null,null,null,null,null,null,null,null,0,0,null,"No","Yes"]
[1,null,null,null,null,null,null,null,null,0,0,null,"No","Yes"]
[1,null,null,null,null,null,null,null,null,0,0,null,"No","Yes"]
[1,null,null,null,null,null,null,null,null,0,0,null,"No","Yes"]
[1,null,null,null,null,null,null,null,null,0,0,null,"No","Yes"]
[1,null,null,null,null,null,null,null,null,0,0,null,"No","Yes"]
[1,null,null,null,null,null,null,null,null,0,0,null,"No","Yes"]
[1,null,null,null,null,null,null,null,null,0,0,null,"No","Yes"]
[1,null,null,null,null,null,null,null,null,0,0,null,"No","Yes"]
[1,null,null,null,null,null,null,null,null,0,0,null,"No","Yes"]
[1,null,null,null,null,null,null,null,null,0,0,null,"No","Yes"]
[1,null,null,null,null,null,null,null,null,0,0,null,"No","Yes"]
[1,null,null,null,null,null,null,null,null,0,0,null,"No","Yes"]
[1,null,null,null,null,null,null,null,null,0,0,null,"No","Yes"]
[1,null,null,null,null,null,null,null,null,0,0,null,"No","Yes"]
[1,null,null,null,null,null,null,null,null,0,0,null,"No","Yes"]
[1,null,null,null,null,null,null,null,null,0,0,null,"No","Yes"]
[1,null,null,null,null,null,null,null,null,0,0,null,"No","Yes"]
[1,null,null,null,null,null,null,null,null,{"$f":"IF(I92=\"Y\",25,0)","v":0},{"$f":"IF(H92>2,H92*5+F92+J92,H92*5)","v":0},null,{"$f":"IF(AND(H92>2,L92=\"Y\"),\"Yes\",\"No\")","v":"No"},{"$f":"IF(AND(G92>0),\"No\",\"Yes\")","v":"Yes"}]
[1,null,null,null,null,null,null,null,null,0,0,null,"No","Yes"]
[1,null,null,null,null,null,null,null,null,0,0,null,"No","Yes"]
[1,null,null,null,null,null,null,null,null,0,0,null,"No","Yes"]
[1,null,null,null,null,null,null,null,null,0,0,null,"No","Yes"]
[1,null,null,null,null,null,null,null,null,0,0,null,"No","Yes"]
[1,null,null,null,null,null,null,null,null,0,0,null,"No","Yes"]
[1,null,null,null,null,null,null,null,null,0,0,null,"No","Yes"]
[1,null,null,null,null,null,null,null,null,0,0,null,"No","Yes"]
[1,null,null,null,null,null,null,null,null,0,0,null,"No","Yes"]
[1,null,null,null,null,null,null,null,null,0,0,null,"No","Yes"]
[1,null,null,null,null,null,null,null,null,0,0,null,"No","Yes"]
[1,null,null,null,null,null,null,null,null,0,0,null,"No","Yes"]
[1,null,null,null,null,null,null,null,null,0,0,null,"No","Yes"]
[1,null,null,null,null,null,null,null,null,0,0,null,"No","Yes"]
[1,null,null,null,null,null,null,null,null,0,0,null,"No","Yes"]
[1,null,null,null,null,null,null,null,null,0,0,null,"No","Yes"]
[1,null,null,null,null,null,null,null,null,0,0,null,"No","Yes"]
[1,null,null,null,null,null,null,null,null,0,0,null,"No","Yes"]
[1,null,null,null,null,null,null,null,null,0,0,null,"No","Yes"]
[1,null,null,null,null,null,null,null,null,0,0,null,"No","Yes"]
[1,null,null,null,null,null,null,null,null,0,0,null,"No","Yes"]
[1,null,null,null,null,null,null,null,null,0,0,null,"No","Yes"]
[1,null,null,null,null,null,null,null,null,0,0,null,"No","Yes"]
[1,null,null,null,null,null,null,null,null,0,0,null,"No","Yes"]
[1,null,null,null,null,null,null,null,null,0,0,null,"No","Yes"]
[1,null,null,null,null,null,null,null,null,0,0,null,"No","Yes"]
[1,null,null,null,null,null,null,null,null,0,0,null,"No","Yes"]
[1,null,null,null,null,null,null,null,null,0,0,null,"No","Yes"]
[1,null,null,null,null,null,null,null,null,0,0,null,"No","Yes"]
[1,null,null,null,null,null,null,null,null,0,0,null,"No","Yes"]
[1,null,null,null,null,null,null,null,null,0,0,null,"No","Yes"]
[1,null,null,null,null,null,null,null,null,0,0,null,"No","Yes"]
[1,null,null,null,null,null,null,null,null,0,0,null,"No","Yes"]
[1,null,null,null,null,null,null,null,null,0,0,null,"No","Yes"]
[1,null,null,null,null,null,null,null,null,0,0,null,"No","Yes"]
[1,null,null,null,null,null,null,null,null,0,0,null,"No","Yes"]
[1,null,null,null,null,null,null,null,null,0,0,null,"No","Yes"]
[1,null,null,null,null,null,null,null,null,0,0,null,"No","Yes"]
[1,null,null,null,null,null,null,null,null,0,0,null,"No","Yes"]
[1,null,null,null,null,null,null,null,null,0,0,null,"No","Yes"]
[1,null,null,null,null,null,null,null,null,0,0,null,"No","Yes"]
[1,null,null,null,null,null,null,null,null,0,0,null,"No","Yes"]
[1,null,null,null,null,null,null,null,null,0,0,null,"No","Yes"]
[1,null,null,null,null,null,null,null,null,0,0,null,"No","Yes"]
[1,null,null,null,null,null,null,null,null,0,0,null,"No","Yes"]
[1,null,null,null,null,null,null,null,null,0,0,null,"No","Yes"]
[1,null,null,null,null,null,null,null,null,0,0,null,"No","Yes"]
[1,null,null,null,null,null,null,null,null,0,0,null,"No","Yes"]
[1,null,null,null,null,null,null,null,null,0,0,null,"No","Yes"]
[1,null,null,null,null,null,null,null,null,0,0,null,"No","Yes"]
[1,null,null,null,null,null,null,null,null,0,0,null,"No","Yes"]
[1,null,null,null,null,null,null,null,null,0,0,null,"No","Yes"]
[1,null,null,null,null,null,null,null,null,0,0,null,"No","Yes"]
[1,null,null,null,null,null,null,null,null,0,0,null,"No","Yes"]
[1,null,null,null,null,null,null,null,null,0,0,null,"No","Yes"]
[1,null,null,null,null,null,null,null,null,0,0,null,"No","Yes"]
[1,null,null,null,null,null,null,null,null,0,0,null,"No","Yes"]
[1,null,null,null,null,null,null,null,null,0,0,null,"No","Yes"]
[1,null,null,null,null,null,null,null,null,0,0,null,"No","Yes"]
[1,null,null,null,null,null,null,null,null,0,0,null,"No","Yes"]
[1,null,null,null,null,null,null,null,null,0,0,null,"No","Yes"]
[1,null,null,null,null,null,null,null,null,0,0,null,"No","Yes"]
[1,null,null,null,null,null,null,null,null,{"$f":"IF(I155=\"Y\",25,0)","v":0},{"$f":"IF(H155>2,H155*5+F155+J155,H155*5)","v":0},null,{"$f":"IF(AND(H155>2,L155=\"Y\"),\"Yes\",\"No\")","v":"No"},{"$f":"IF(AND(G155>0),\"No\",\"Yes\")","v":"Yes"}]
[1,null,null,null,null,null,null,null,null,0,0,null,"No","Yes"]
[1,null,null,null,null,null,null,null,null,0,0,null,"No","Yes"]
[1,null,null,null,null,null,null,null,null,0,0,null,"No","Yes"]
[1,null,null,null,null,null,null,null,null,0,0,null,"No","Yes"]
[1,null,null,null,null,null,null,null,null,0,0,null,"No","Yes"]
[1,null,null,null,null,null,null,null,null,0,0,null,"No","Yes"]
[1,null,null,null,null,null,null,null,null,0,0,null,"No","Yes"]
[1,null,null,null,null,null,null,null,null,0,0,null,"No","Yes"]
[1,null,null,null,null,null,null,null,null,0,0,null,"No","Yes"]
[1,null,null,null,null,null,null,null,null,0,0,null,"No","Yes"]
[1,null,null,null,null,null,null,null,null,0,0,null,"No","Yes"]
[1,null,null,null,null,null,null,null,null,0,0,null,"No","Yes"]
[1,null,null,null,null,null,null,null,null,0,0,null,"No","Yes"]
[1,null,null,null,null,null,null,null,null,0,0,null,"No","Yes"]
[1,null,null,null,null,null,null,null,null,0,0,null,"No","Yes"]
[1,null,null,null,null,null,null,null,null,0,0,null,"No","Yes"]
[1,null,null,null,null,null,null,null,null,0,0,null,"No","Yes"]
[1,null,null,null,null,null,null,null,null,0,0,null,"No","Yes"]
[1,null,null,null,null,null,null,null,null,0,0,null,"No","Yes"]
[1,null,null,null,null,null,null,null,null,0,0,null,"No","Yes"]
[1,null,null,null,null,null,null,null,null,0,0,null,"No","Yes"]
[1,null,null,null,null,null,null,null,null,0,0,null,"No","Yes"]
[1,null,null,null,null,null,null,null,null,0,0,null,"No","Yes"]
[1,null,null,null,null,null,null,null,null,0,0,null,"No","Yes"]
[1,null,null,null,null,null,null,null,null,0,0,null,"No","Yes"]
[1,null,null,null,null,null,null,null,null,0,0,null,"No","Yes"]
[1,null,null,null,null,null,null,null,null,0,0,null,"No","Yes"]
[1,null,null,null,null,null,null,null,null,0,0,null,"No","Yes"]
[1,null,null,null,null,null,null,null,null,0,0,null,"No","Yes"]
[1,null,null,null,null,null,null,null,null,0,0,null,"No","Yes"]
[1,null,null,null,null,null,null,null,null,0,0,null,"No","Yes"]
[1,null,null,null,null,null,null,null,null,0,0,null,"No","Yes"]
[1,null,null,null,null,null,null,null,null,0,0,null,"No","Yes"]
[1,null,null,null,null,null,null,null,null,0,0,null,"No","Yes"]
[1,null,null,null,null,null,null,null,null,0,0,null,"No","Yes"]
[1,null,null,null,null,null,null,null,null,0,0,null,"No","Yes"]
[1,null,null,null,null,null,null,null,null,0,0,null,"No","Yes"]
[1,null,null,null,null,null,null,null,null,0,0,null,"No","Yes"]
[1,null,null,null,null,null,null,null,null,0,0,null,"No","Yes"]
[1,null,null,null,null,null,null,null,null,0,0,null,"No","Yes"]
[1,null,null,null,null,null,null,null,null,0,0,null,"No","Yes"]
[1,null,null,null,null,null,null,null,null,0,0,null,"No","Yes"]
[1,null,null,null,null,null,null,null,null,0,0,null,"No","Yes"]
[1,null,null,null,null,null,null,null,null,0,0,null,"No","Yes"]
[1,null,null,null,null,null,null,null,null,0,0,null,"No","Yes"]
[1,null,null,null,null,null,null,null,null,0,0,null,"No","Yes"]
[1,null,null,null,null,null,null,null,null,0,0,null,"No","Yes"]
[1,null,null,null,null,null,null,null,null,0,0,null,"No","Yes"]
[1,null,null,null,null,null,null,null,null,0,0,null,"No","Yes"]
[1,null,null,null,null,null,null,null,null,0,0,null,"No","Yes"]
[1,null,null,null,null,null,null,null,null,0,0,null,"No","Yes"]
[1,null,null,null,null,null,null,null,null,0,0,null,"No","Yes"]
[1,null,null,null,null,null,null,null,null,0,0,null,"No","Yes"]
[1,null,null,null,null,null,null,null,null,0,0,null,"No","Yes"]
[1,null,null,null,null,null,null,null,null,0,0,null,"No","Yes"]
[1,null,null,null,null,null,null,null,null,0,0,null,"No","Yes"]
[1,null,null,null,null,null,null,null,null,0,0,null,"No","Yes"]
[1,null,null,null,null,null,null,null,null,0,0,null,"No","Yes"]
[1,null,null,null,null,null,null,null,null,0,0,null,"No","Yes"]
[1,null,null,null,null,null,null,null,null,0,0,null,"No","Yes"]
[1,null,null,null,null,null,null,null,null,0,0,null,"No","Yes"]
[1,null,null,null,null,null,null,null,null,0,0,null,"No","Yes"]
[1,null,null,null,null,null,null,null,null,0,0,null,"No","Yes"]
[1,null,null,null,null,null,null,null,null,{"$f":"IF(I219=\"Y\",25,0)","v":0},{"$f":"IF(H219>2,H219*5+F219+J219,H219*5)","v":0},null,{"$f":"IF(AND(H219>2,L219=\"Y\"),\"Yes\",\"No\")","v":"No"},{"$f":"IF(AND(G219>0),\"No\",\"Yes\")","v":"Yes"}]
[1,null,null,null,null,null,null,null,null,0,0,null,"No","Yes"]
[1,null,null,null,null,null,null,null,null,0,0,null,"No","Yes"]
[1,null,null,null,null,null,null,null,null,0,0,null,"No","Yes"]
[1,null,null,null,null,null,null,null,null,0,0,null,"No","Yes"]
[1,null,null,null,null,null,null,null,null,0,0,null,"No","Yes"]
[1,null,null,null,null,null,null,null,null,0,0,null,"No","Yes"]
[1,null,null,null,null,null,null,null,null,0,0,null,"No","Yes"]
[1,null,null,null,null,null,null,null,null,0,0,null,"No","Yes"]
[1,null,null,null,null,null,null,null,null,0,0,null,"No","Yes"]
[1,null,null,null,null,null,null,null,null,0,0,null,"No","Yes"]
[1,null,null,null,null,null,null,null,null,0,0,null,"No","Yes"]
[1,null,null,null,null,null,null,null,null,0,0,null,"No","Yes"]
[1,null,null,null,null,null,null,null,null,0,0,null,"No","Yes"]
[1,null,null,null,null,null,null,null,null,0,0,null,"No","Yes"]
[1,null,null,null,null,null,null,null,null,0,0,null,"No","Yes"]
[1,null,null,null,null,null,null,null,null,0,0,null,"No","Yes"]
[1,null,null,null,null,null,null,null,null,0,0,null,"No","Yes"]
[1,null,null,null,null,null,null,null,null,0,0,null,"No","Yes"]
[1,null,null,null,null,null,null,null,null,0,0,null,"No","Yes"]
[1,null,null,null,null,null,null,null,null,0,0,null,"No","Yes"]
[1,null,null,null,null,null,null,null,null,0,0,null,"No","Yes"]
[1,null,null,null,null,null,null,null,null,0,0,null,"No","Yes"]
[1,null,null,null,null,null,null,null,null,0,0,null,"No","Yes"]
[1,null,null,null,null,null,null,null,null,0,0,null,"No","Yes"]
[1,null,null,null,null,null,null,null,null,0,0,null,"No","Yes"]
[1,null,null,null,null,null,null,null,null,0,0,null,"No","Yes"]
[1,null,null,null,null,null,null,null,null,0,0,null,"No","Yes"]
[1,null,null,null,null,null,null,null,null,0,0,null,"No","Yes"]
[1,null,null,null,null,null,null,null,null,0,0,null,"No","Yes"]
[1,null,null,null,null,null,null,null,null,0,0,null,"No","Yes"]
[1,null,null,null,null,null,null,null,null,0,0,null,"No","Yes"]
[1,null,null,null,null,null,null,null,null,0,0,null,"No","Yes"]
[1,null,null,null,null,null,null,null,null,0,0,null,"No","Yes"]
[1,null,null,null,null,null,null,null,null,0,0,null,"No","Yes"]
[1,null,null,null,null,null,null,null,null,0,0,null,"No","Yes"]
[1,null,null,null,null,null,null,null,null,0,0,null,"No","Yes"]
[1,null,null,null,null,null,null,null,null,0,0,null,"No","Yes"]
[1,null,null,null,null,null,null,null,null,0,0,null,"No","Yes"]
[1,null,null,null,null,null,null,null,null,0,0,null,"No","Yes"]
[1,null,null,null,null,null,null,null,null,0,0,null,"No","Yes"]
[1,null,null,null,null,null,null,null,null,0,0,null,"No","Yes"]
[1,null,null,null,null,null,null,null,null,0,0,null,"No","Yes"]
[1,null,null,null,null,null,null,null,null,0,0,null,"No","Yes"]
[1,null,null,null,null,null,null,null,null,0,0,null,"No","Yes"]
[1,null,null,null,null,null,null,null,null,0,0,null,"No","Yes"]
[1,null,null,null,null,null,null,null,null,0,0,null,"No","Yes"]
[1,null,null,null,null,null,null,null,null,0,0,null,"No","Yes"]
[1,null,null,null,null,null,null,null,null,0,0,null,"No","Yes"]
[1,null,null,null,null,null,null,null,null,0,0,null,"No","Yes"]
[1,null,null,null,null,null,null,null,null,0,0,null,"No","Yes"]
[1,null,null,null,null,null,null,null,null,0,0,null,"No","Yes"]
[1,null,null,null,null,null,null,null,null,0,0,null,"No","Yes"]
[1,null,null,null,null,null,null,null,null,0,0,null,"No","Yes"]
[1,null,null,null,null,null,null,null,null,0,0,null,"No","Yes"]
[1,null,null,null,null,null,null,null,null,0,0,null,"No","Yes"]
[1,null,null,null,null,null,null,null,null,0,0,null,"No","Yes"]
[1,null,null,null,null,null,null,null,null,0,0,null,"No","Yes"]
[1,null,null,null,null,null,null,null,null,0,0,null,"No","Yes"]
[1,null,null,null,null,null,null,null,null,0,0,null,"No","Yes"]
[1,null,null,null,null,null,null,null,null,0,0,null,"No","Yes"]
[1,null,null,null,null,null,null,null,null,0,0,null,"No","Yes"]
[1,null,null,null,null,null,null,null,null,0,0,null,"No","Yes"]
[1,null,null,null,null,null,null,null,null,0,0,null,"No","Yes"]
[1,null,null,null,null,null,null,null,null,{"$f":"IF(I283=\"Y\",25,0)","v":0},{"$f":"IF(H283>2,H283*5+F283+J283,H283*5)","v":0},null,{"$f":"IF(AND(H283>2,L283=\"Y\"),\"Yes\",\"No\")","v":"No"},{"$f":"IF(AND(G283>0),\"No\",\"Yes\")","v":"Yes"}]
[1,null,null,null,null,null,null,null,null,0,0,null,"No","Yes"]
[1,null,null,null,null,null,null,null,null,0,0,null,"No","Yes"]
[1,null,null,null,null,null,null,null,null,0,0,null,"No","Yes"]
[1,null,null,null,null,null,null,null,null,0,0,null,"No","Yes"]
[1,null,null,null,null,null,null,null,null,0,0,null,"No","Yes"]
[1,null,null,null,null,null,null,null,null,0,0,null,"No","Yes"]
[1,null,null,null,null,null,null,null,null,0,0,null,"No","Yes"]
[1,null,null,null,null,null,null,null,null,0,0,null,"No","Yes"]
[1,null,null,null,null,null,null,null,null,0,0,null,"No","Yes"]
[1,null,null,null,null,null,null,null,null,0,0,null,"No","Yes"]
[1,null,null,null,null,null,null,null,null,0,0,null,"No","Yes"]
[1,null,null,null,null,null,null,null,null,0,0,null,"No","Yes"]
[1,null,null,null,null,null,null,null,null,0,0,null,"No","Yes"]
[1,null,null,null,null,null,null,null,null,0,0,null,"No","Yes"]
[1,null,null,null,null,null,null,null,null,0,0,null,"No","Yes"]

{"sheet":"Sheet1","index":2,"n_rows":2,"n_cols":1,"rows_kept":2,"cut":false,"hidden":true,"merged":[]}
["N"]
["Y"]

{"sheet":"Sheet3","index":3,"n_rows":59,"n_cols":4,"rows_kept":59,"cut":false,"hidden":true,"merged":[]}
[0,null,null,0]
[1,null,null,1]
[2,null,null,2]
[3,null,null,3]
[null,null,null,4]
[null,null,null,5]
[null,null,null,6]
[null,null,null,7]
[null,null,null,8]
[null,null,null,9]
[null,null,null,10]
[null,null,null,11]
[null,null,null,12]
[null,null,null,13]
[null,null,null,14]
[null,null,null,15]
[null,null,null,16]
[null,null,null,17]
[null,null,null,18]
[null,null,null,19]
[null,null,null,20]
[null,null,null,21]
[null,null,null,22]
[null,null,null,23]
[null,null,null,24]
[null,null,null,25]
[null,null,null,26]
[null,null,null,27]
[null,null,null,28]
[null,null,null,29]
[null,null,null,30]
[null,null,null,31]
[null,null,null,32]
[null,null,null,33]
[null,null,null,34]
[null,null,null,35]
[null,null,null,36]
[null,null,null,37]
[null,null,null,38]
[null,null,null,39]
[null,null,null,40]
[null,null,null,41]
[null,null,null,42]
[null,null,null,43]
[null,null,null,44]
[null,null,null,45]
[null,null,null,46]
[null,null,null,47]
[null,null,null,48]
[null,null,null,49]
[null,null,null,50]
[null,null,null,51]
[null,null,null,52]
[null,null,null,53]
[null,null,null,54]
[null,null,null,55]
[null,null,null,56]
[null,null,null,57]
[null,null,null,58]

{"sheet":"Sort Sheet","index":4,"n_rows":295,"n_cols":14,"rows_kept":295,"cut":false,"hidden":false,"merged":[]}
["Level ","Handler (First and Last Name)","Dog","UDT #          (this is the UpDog Team # not the competitor #)","Finishing time (nearest 100th of a second - Use 0 if they Did Not Finish)","# of seconds remaining","# of Misses","# of zone catches","Sweet Shot Double Shot Completed Successfully?","SSDS Points","Total for Zones","Were all throws thrown as Rollers           Y or N?","High Roller","Golden Receiver"]
[1,"Frank Montgomery","Jagger","T12683192",44.49,44,0,3,"Y",{"$f":"IF(I2=\"Y\",25,0)","v":25},{"$f":"IF(H2>2,H2*5+F2+J2,H2*5)","v":84},"N",{"$f":"IF(AND(H2>2,L2=\"Y\"),\"Yes\",\"No\")","v":"No"},{"$f":"IF(AND(G2>0),\"No\",\"Yes\")","v":"Yes"}]
[1,"Tara Moriarty","Draak","T29181235",33.18,33,0,3,"N",0,48,"Y","Yes","Yes"]
[1,"Finn Proctor","Rumor","T29480237",22.6,23,1,3,"N",0,38,"N","No","No"]
[1,"Marisa Finan-Goode","Kite","T21413223",14.39,14,2,3,"N",0,29,"N","No","No"]
[1,"Tammy Bonas","Tac","T8932181",9.6300000000000008,10,3,3,"N",0,25,"N","No","No"]
[1,"Finn Proctor","Tango","T30544231",9.15,9,5,3,"N",0,24,"N","No","No"]
[1,"Sam Marion","GIR","T20779220",4.75,5,4,3,"N",0,20,"N","No","No"]
[1,"Finn Proctor","Figment","T26447235",0,0,2,3,"N",0,15,"N","No","No"]
[1,"Tammy Bonas","Bo","T26447235",0,0,3,3,"N",0,15,"N","No","No"]
[1,"Jennifer Bale O' Connell","Chili","T10144199",0,0,0,3,"N",0,15,"N","No","Yes"]
[1,"Silver Alfriker","Bisha","T26466233",0,0,3,2,"N",0,10,"N","No","No"]
[1,"Zoey Proctor","Figment","T29478231",0,0,6,2,"N",0,10,"N","No","No"]
[1,"Rachel Hoar","Nacho","T16237214",0,0,4,2,"N",0,10,"N","No","No"]
[1,"Tracy Love"," Rhythm","T10175199",0,0,6,2,"N",0,10,"N","No","No"]
[1,"Jennifer Bale O' Connell","Mayday","T24346222",0,0,2,2,"N",0,10,"N","No","No"]
[1,"Ashley Rogers","Oakley","T30961243",0,0,4,1,"N",0,5,"N","No","No"]
[1,"Jeff Love","Rhapsody","T13736205",0,0,5,0,"N",0,0,"N","No","No"]
[1,null,null,null,null,null,null,null,null,0,0,null,"No","Yes"]
[1,null,null,null,null,null,null,null,null,0,0,null,"No","Yes"]
[1,null,null,null,null,null,null,null,null,0,0,null,"No","Yes"]
[1,null,null,null,null,null,null,null,null,0,0,null,"No","Yes"]
[1,null,null,null,null,null,null,null,null,0,0,null,"No","Yes"]
[1,null,null,null,null,null,null,null,null,0,0,null,"No","Yes"]
[1,null,null,null,null,null,null,null,null,0,0,null,"No","Yes"]
[1,null,null,null,null,null,null,null,null,0,0,"Y","No","Yes"]
[1,null,null,null,null,null,null,null,null,0,0,null,"No","Yes"]
[1,null,null,null,null,null,null,null,null,0,0,null,"No","Yes"]
[1,null,null,null,null,null,null,null,null,0,0,null,"No","Yes"]
[1,null,null,null,null,null,null,null,null,0,0,null,"No","Yes"]
[1,null,null,null,null,null,null,null,null,0,0,null,"No","Yes"]
[1,null,null,null,null,null,null,null,null,0,0,null,"No","Yes"]
[1,null,null,null,null,null,null,null,null,0,0,null,"No","Yes"]
[1,null,null,null,null,null,null,null,null,0,0,null,{"$f":"IF(AND(H34>2,L34=\"Y\"),\"Yes\",\"No\")","v":"No"},"Yes"]
[1,null,null,null,null,null,null,null,null,0,0,null,"No","Yes"]
[1,null,null,null,null,null,null,null,null,0,0,null,"No","Yes"]
[1,null,null,null,null,null,null,null,null,0,0,null,"No","Yes"]
[1,null,null,null,null,null,null,null,null,0,0,null,"No","Yes"]
[1,null,null,null,null,null,null,null,null,0,0,null,"No","Yes"]
[1,null,null,null,null,null,null,null,null,0,0,null,"No","Yes"]
[1,null,null,null,null,null,null,null,null,0,0,null,"No","Yes"]
[1,null,null,null,null,null,null,null,null,0,0,null,"No","Yes"]
[1,null,null,null,null,null,null,null,null,0,0,null,"No","Yes"]
[1,null,null,null,null,null,null,null,null,0,0,null,"No","Yes"]
[1,null,null,null,null,null,null,null,null,0,0,null,"No","Yes"]
[1,null,null,null,null,null,null,null,null,0,0,null,"No","Yes"]
[1,null,null,null,null,null,null,null,null,0,0,null,"No","Yes"]
[1,null,null,null,null,null,null,null,null,0,0,null,"No","Yes"]
[1,null,null,null,null,null,null,null,null,0,0,null,"No","Yes"]
[1,null,null,null,null,null,null,null,null,0,0,null,"No","Yes"]
[1,null,null,null,null,null,null,null,null,0,0,null,"No","Yes"]
[1,null,null,null,null,null,null,null,null,0,0,null,"No","Yes"]
[1,null,null,null,null,null,null,null,null,0,0,null,"No","Yes"]
[1,null,null,null,null,null,null,null,null,0,0,null,"No","Yes"]
[1,null,null,null,null,null,null,null,null,0,0,null,"No","Yes"]
[1,null,null,null,null,null,null,null,null,0,0,null,"No","Yes"]
[1,null,null,null,null,null,null,null,null,0,0,null,"No","Yes"]
[1,null,null,null,null,null,null,null,null,0,0,null,"No","Yes"]
[1,null,null,null,null,null,null,null,null,0,0,null,"No","Yes"]
[1,null,null,null,null,null,null,null,null,0,0,null,"No","Yes"]
[1,null,null,null,null,null,null,null,null,0,0,null,"No","Yes"]
[1,null,null,null,null,null,null,null,null,0,0,null,"No","Yes"]
[1,null,null,null,null,null,null,null,null,0,0,null,"No","Yes"]
[1,null,null,null,null,null,null,null,null,0,0,null,"No","Yes"]
[1,null,null,null,null,null,null,null,null,0,0,null,"No","Yes"]
[1,null,null,null,null,null,null,null,null,{"$f":"IF(I66=\"Y\",25,0)","v":0},{"$f":"IF(H66>2,H66*5+F66+J66,H66*5)","v":0},null,{"$f":"IF(AND(H66>2,L66=\"Y\"),\"Yes\",\"No\")","v":"No"},{"$f":"IF(AND(G66>0),\"No\",\"Yes\")","v":"Yes"}]
[1,null,null,null,null,null,null,null,null,0,0,null,"No","Yes"]
[1,null,null,null,null,null,null,null,null,0,0,null,"No","Yes"]
[1,null,null,null,null,null,null,null,null,0,0,null,"No","Yes"]
[1,null,null,null,null,null,null,null,null,0,0,null,"No","Yes"]
[1,null,null,null,null,null,null,null,null,0,0,null,"No","Yes"]
[1,null,null,null,null,null,null,null,null,0,0,null,"No","Yes"]
[1,null,null,null,null,null,null,null,null,0,0,null,"No","Yes"]
[1,null,null,null,null,null,null,null,null,0,0,null,"No","Yes"]
[1,null,null,null,null,null,null,null,null,0,0,null,"No","Yes"]
[1,null,null,null,null,null,null,null,null,0,0,null,"No","Yes"]
[1,null,null,null,null,null,null,null,null,0,0,null,"No","Yes"]
[1,null,null,null,null,null,null,null,null,0,0,null,"No","Yes"]
[1,null,null,null,null,null,null,null,null,0,0,null,"No","Yes"]
[1,null,null,null,null,null,null,null,null,0,0,null,"No","Yes"]
[1,null,null,null,null,null,null,null,null,0,0,null,"No","Yes"]
[1,null,null,null,null,null,null,null,null,0,0,null,"No","Yes"]
[1,null,null,null,null,null,null,null,null,0,0,null,"No","Yes"]
[1,null,null,null,null,null,null,null,null,0,0,null,"No","Yes"]
[1,null,null,null,null,null,null,null,null,0,0,null,"No","Yes"]
[1,null,null,null,null,null,null,null,null,0,0,null,"No","Yes"]
[1,null,null,null,null,null,null,null,null,0,0,null,"No","Yes"]
[1,null,null,null,null,null,null,null,null,0,0,null,"No","Yes"]
[1,null,null,null,null,null,null,null,null,0,0,null,"No","Yes"]
[1,null,null,null,null,null,null,null,null,0,0,null,"No","Yes"]
[1,null,null,null,null,null,null,null,null,0,0,null,"No","Yes"]
[1,null,null,null,null,null,null,null,null,0,0,null,"No","Yes"]
[1,null,null,null,null,null,null,null,null,0,0,null,"No","Yes"]
[1,null,null,null,null,null,null,null,null,0,0,null,"No","Yes"]
[1,null,null,null,null,null,null,null,null,0,0,null,"No","Yes"]
[1,null,null,null,null,null,null,null,null,0,0,null,"No","Yes"]
[1,null,null,null,null,null,null,null,null,0,0,null,"No","Yes"]
[1,null,null,null,null,null,null,null,null,0,0,null,{"$f":"IF(AND(H98>2,L98=\"Y\"),\"Yes\",\"No\")","v":"No"},"Yes"]
[1,null,null,null,null,null,null,null,null,0,0,null,"No","Yes"]
[1,null,null,null,null,null,null,null,null,0,0,null,"No","Yes"]
[1,null,null,null,null,null,null,null,null,0,0,null,"No","Yes"]
[1,null,null,null,null,null,null,null,null,0,0,null,"No","Yes"]
[1,null,null,null,null,null,null,null,null,0,0,null,"No","Yes"]
[1,null,null,null,null,null,null,null,null,0,0,null,"No","Yes"]
[1,null,null,null,null,null,null,null,null,0,0,null,"No","Yes"]
[1,null,null,null,null,null,null,null,null,0,0,null,"No","Yes"]
[1,null,null,null,null,null,null,null,null,0,0,null,"No","Yes"]
[1,null,null,null,null,null,null,null,null,0,0,null,"No","Yes"]
[1,null,null,null,null,null,null,null,null,0,0,null,"No","Yes"]
[1,null,null,null,null,null,null,null,null,0,0,null,"No","Yes"]
[1,null,null,null,null,null,null,null,null,0,0,null,"No","Yes"]
[1,null,null,null,null,null,null,null,null,0,0,null,"No","Yes"]
[1,null,null,null,null,null,null,null,null,0,0,null,"No","Yes"]
[1,null,null,null,null,null,null,null,null,0,0,null,"No","Yes"]
[1,null,null,null,null,null,null,null,null,0,0,null,"No","Yes"]
[1,null,null,null,null,null,null,null,null,0,0,null,"No","Yes"]
[1,null,null,null,null,null,null,null,null,0,0,null,"No","Yes"]
[1,null,null,null,null,null,null,null,null,0,0,null,"No","Yes"]
[1,null,null,null,null,null,null,null,null,0,0,null,"No","Yes"]
[1,null,null,null,null,null,null,null,null,0,0,null,"No","Yes"]
[1,null,null,null,null,null,null,null,null,0,0,null,"No","Yes"]
[1,null,null,null,null,null,null,null,null,0,0,null,"No","Yes"]
[1,null,null,null,null,null,null,null,null,0,0,null,"No","Yes"]
[1,null,null,null,null,null,null,null,null,0,0,null,"No","Yes"]
[1,null,null,null,null,null,null,null,null,0,0,null,"No","Yes"]
[1,null,null,null,null,null,null,null,null,0,0,null,"No","Yes"]
[1,null,null,null,null,null,null,null,null,0,0,null,"No","Yes"]
[1,null,null,null,null,null,null,null,null,0,0,null,"No","Yes"]
[1,null,null,null,null,null,null,null,null,0,0,null,"No","Yes"]
[1,null,null,null,null,null,null,null,null,{"$f":"IF(I130=\"Y\",25,0)","v":0},{"$f":"IF(H130>2,H130*5+F130+J130,H130*5)","v":0},null,{"$f":"IF(AND(H130>2,L130=\"Y\"),\"Yes\",\"No\")","v":"No"},{"$f":"IF(AND(G130>0),\"No\",\"Yes\")","v":"Yes"}]
[1,null,null,null,null,null,null,null,null,0,0,null,"No","Yes"]
[1,null,null,null,null,null,null,null,null,0,0,null,"No","Yes"]
[1,null,null,null,null,null,null,null,null,0,0,null,"No","Yes"]
[1,null,null,null,null,null,null,null,null,0,0,null,"No","Yes"]
[1,null,null,null,null,null,null,null,null,0,0,null,"No","Yes"]
[1,null,null,null,null,null,null,null,null,0,0,null,"No","Yes"]
[1,null,null,null,null,null,null,null,null,0,0,null,"No","Yes"]
[1,null,null,null,null,null,null,null,null,0,0,null,"No","Yes"]
[1,null,null,null,null,null,null,null,null,0,0,null,"No","Yes"]
[1,null,null,null,null,null,null,null,null,0,0,null,"No","Yes"]
[1,null,null,null,null,null,null,null,null,0,0,null,"No","Yes"]
[1,null,null,null,null,null,null,null,null,0,0,null,"No","Yes"]
[1,null,null,null,null,null,null,null,null,0,0,null,"No","Yes"]
[1,null,null,null,null,null,null,null,null,0,0,null,"No","Yes"]
[1,null,null,null,null,null,null,null,null,0,0,null,"No","Yes"]
[1,null,null,null,null,null,null,null,null,0,0,null,"No","Yes"]
[1,null,null,null,null,null,null,null,null,0,0,null,"No","Yes"]
[1,null,null,null,null,null,null,null,null,0,0,null,"No","Yes"]
[1,null,null,null,null,null,null,null,null,0,0,null,"No","Yes"]
[1,null,null,null,null,null,null,null,null,0,0,null,"No","Yes"]
[1,null,null,null,null,null,null,null,null,0,0,null,"No","Yes"]
[1,null,null,null,null,null,null,null,null,0,0,null,"No","Yes"]
[1,null,null,null,null,null,null,null,null,0,0,null,"No","Yes"]
[1,null,null,null,null,null,null,null,null,0,0,null,"No","Yes"]
[1,null,null,null,null,null,null,null,null,0,0,null,"No","Yes"]
[1,null,null,null,null,null,null,null,null,0,0,null,"No","Yes"]
[1,null,null,null,null,null,null,null,null,0,0,null,"No","Yes"]
[1,null,null,null,null,null,null,null,null,0,0,null,"No","Yes"]
[1,null,null,null,null,null,null,null,null,0,0,null,"No","Yes"]
[1,null,null,null,null,null,null,null,null,0,0,null,"No","Yes"]
[1,null,null,null,null,null,null,null,null,0,0,null,"No","Yes"]
[1,null,null,null,null,null,null,null,null,0,0,null,{"$f":"IF(AND(H162>2,L162=\"Y\"),\"Yes\",\"No\")","v":"No"},"Yes"]
[1,null,null,null,null,null,null,null,null,0,0,null,"No","Yes"]
[1,null,null,null,null,null,null,null,null,0,0,null,"No","Yes"]
[1,null,null,null,null,null,null,null,null,0,0,null,"No","Yes"]
[1,null,null,null,null,null,null,null,null,0,0,null,"No","Yes"]
[1,null,null,null,null,null,null,null,null,0,0,null,"No","Yes"]
[1,null,null,null,null,null,null,null,null,0,0,null,"No","Yes"]
[1,null,null,null,null,null,null,null,null,0,0,null,"No","Yes"]
[1,null,null,null,null,null,null,null,null,0,0,null,"No","Yes"]
[1,null,null,null,null,null,null,null,null,0,0,null,"No","Yes"]
[1,null,null,null,null,null,null,null,null,0,0,null,"No","Yes"]
[1,null,null,null,null,null,null,null,null,0,0,null,"No","Yes"]
[1,null,null,null,null,null,null,null,null,0,0,null,"No","Yes"]
[1,null,null,null,null,null,null,null,null,0,0,null,"No","Yes"]
[1,null,null,null,null,null,null,null,null,0,0,null,"No","Yes"]
[1,null,null,null,null,null,null,null,null,0,0,null,"No","Yes"]
[1,null,null,null,null,null,null,null,null,0,0,null,"No","Yes"]
[1,null,null,null,null,null,null,null,null,0,0,null,"No","Yes"]
[1,null,null,null,null,null,null,null,null,0,0,null,"No","Yes"]
[1,null,null,null,null,null,null,null,null,0,0,null,"No","Yes"]
[1,null,null,null,null,null,null,null,null,0,0,null,"No","Yes"]
[1,null,null,null,null,null,null,null,null,0,0,null,"No","Yes"]
[1,null,null,null,null,null,null,null,null,0,0,null,"No","Yes"]
[1,null,null,null,null,null,null,null,null,0,0,null,"No","Yes"]
[1,null,null,null,null,null,null,null,null,0,0,null,"No","Yes"]
[1,null,null,null,null,null,null,null,null,0,0,null,"No","Yes"]
[1,null,null,null,null,null,null,null,null,0,0,null,"No","Yes"]
[1,null,null,null,null,null,null,null,null,0,0,null,"No","Yes"]
[1,null,null,null,null,null,null,null,null,0,0,null,"No","Yes"]
[1,null,null,null,null,null,null,null,null,0,0,null,"No","Yes"]
[1,null,null,null,null,null,null,null,null,0,0,null,"No","Yes"]
[1,null,null,null,null,null,null,null,null,0,0,null,"No","Yes"]
[1,null,null,null,null,null,null,null,null,{"$f":"IF(I194=\"Y\",25,0)","v":0},{"$f":"IF(H194>2,H194*5+F194+J194,H194*5)","v":0},null,{"$f":"IF(AND(H194>2,L194=\"Y\"),\"Yes\",\"No\")","v":"No"},{"$f":"IF(AND(G194>0),\"No\",\"Yes\")","v":"Yes"}]
[1,null,null,null,null,null,null,null,null,0,0,null,"No","Yes"]
[1,null,null,null,null,null,null,null,null,0,0,null,"No","Yes"]
[1,null,null,null,null,null,null,null,null,0,0,null,"No","Yes"]
[1,null,null,null,null,null,null,null,null,0,0,null,"No","Yes"]
[1,null,null,null,null,null,null,null,null,0,0,null,"No","Yes"]
[1,null,null,null,null,null,null,null,null,0,0,null,{"$f":"IF(AND(H200>2,L200=\"Y\"),\"Yes\",\"No\")","v":"No"},"Yes"]
[1,null,null,null,null,null,null,null,null,0,0,null,"No","Yes"]
[1,null,null,null,null,null,null,null,null,0,0,null,"No","Yes"]
[1,null,null,null,null,null,null,null,null,0,0,null,"No","Yes"]
[1,null,null,null,null,null,null,null,null,0,0,null,"No","Yes"]
[1,null,null,null,null,null,null,null,null,0,0,null,"No","Yes"]
[1,null,null,null,null,null,null,null,null,0,0,null,"No","Yes"]
[1,null,null,null,null,null,null,null,null,0,0,null,"No","Yes"]
[1,null,null,null,null,null,null,null,null,0,0,null,"No","Yes"]
[1,null,null,null,null,null,null,null,null,0,0,null,"No","Yes"]
[1,null,null,null,null,null,null,null,null,0,0,null,"No","Yes"]
[1,null,null,null,null,null,null,null,null,0,0,null,"No","Yes"]
[1,null,null,null,null,null,null,null,null,0,0,null,"No","Yes"]
[1,null,null,null,null,null,null,null,null,0,0,null,"No","Yes"]
[1,null,null,null,null,null,null,null,null,0,0,null,"No","Yes"]
[1,null,null,null,null,null,null,null,null,0,0,null,"No","Yes"]
[1,null,null,null,null,null,null,null,null,0,0,null,"No","Yes"]
[1,null,null,null,null,null,null,null,null,0,0,null,"No","Yes"]
[1,null,null,null,null,null,null,null,null,0,0,null,"No","Yes"]
[1,null,null,null,null,null,null,null,null,0,0,null,"No","Yes"]
[1,null,null,null,null,null,null,null,null,0,0,null,"No","Yes"]
[1,null,null,null,null,null,null,null,null,0,0,null,"No","Yes"]
[1,null,null,null,null,null,null,null,null,0,0,null,"No","Yes"]
[1,null,null,null,null,null,null,null,null,0,0,null,"No","Yes"]
[1,null,null,null,null,null,null,null,null,0,0,null,"No","Yes"]
[1,null,null,null,null,null,null,null,null,0,0,null,"No","Yes"]
[1,null,null,null,null,null,null,null,null,0,0,null,"No","Yes"]
[1,null,null,null,null,null,null,null,null,0,0,null,"No","Yes"]
[1,null,null,null,null,null,null,null,null,0,0,null,"No","Yes"]
[1,null,null,null,null,null,null,null,null,0,0,null,"No","Yes"]
[1,null,null,null,null,null,null,null,null,0,0,null,"No","Yes"]
[1,null,null,null,null,null,null,null,null,0,0,null,"No","Yes"]
[1,null,null,null,null,null,null,null,null,0,0,null,{"$f":"IF(AND(H232>2,L232=\"Y\"),\"Yes\",\"No\")","v":"No"},"Yes"]
[1,null,null,null,null,null,null,null,null,0,0,null,"No","Yes"]
[1,null,null,null,null,null,null,null,null,0,0,null,"No","Yes"]
[1,null,null,null,null,null,null,null,null,0,0,null,"No","Yes"]
[1,null,null,null,null,null,null,null,null,0,0,null,"No","Yes"]
[1,null,null,null,null,null,null,null,null,0,0,null,"No","Yes"]
[1,null,null,null,null,null,null,null,null,0,0,null,"No","Yes"]
[1,null,null,null,null,null,null,null,null,0,0,null,"No","Yes"]
[1,null,null,null,null,null,null,null,null,0,0,null,"No","Yes"]
[1,null,null,null,null,null,null,null,null,0,0,null,"No","Yes"]
[1,null,null,null,null,null,null,null,null,0,0,null,"No","Yes"]
[1,null,null,null,null,null,null,null,null,0,0,null,"No","Yes"]
[1,null,null,null,null,null,null,null,null,0,0,null,"No","Yes"]
[1,null,null,null,null,null,null,null,null,0,0,null,"No","Yes"]
[1,null,null,null,null,null,null,null,null,0,0,null,"No","Yes"]
[1,null,null,null,null,null,null,null,null,0,0,null,"No","Yes"]
[1,null,null,null,null,null,null,null,null,0,0,null,"No","Yes"]
[1,null,null,null,null,null,null,null,null,0,0,null,"No","Yes"]
[1,null,null,null,null,null,null,null,null,0,0,null,"No","Yes"]
[1,null,null,null,null,null,null,null,null,0,0,null,"No","Yes"]
[1,null,null,null,null,null,null,null,null,0,0,null,"No","Yes"]
[1,null,null,null,null,null,null,null,null,0,0,null,"No","Yes"]
[1,null,null,null,null,null,null,null,null,0,0,null,"No","Yes"]
[1,null,null,null,null,null,null,null,null,0,0,null,"No","Yes"]
[1,null,null,null,null,null,null,null,null,0,0,null,"No","Yes"]
[1,null,null,null,null,null,null,null,null,0,0,null,"No","Yes"]
[1,null,null,null,null,null,null,null,null,{"$f":"IF(I258=\"Y\",25,0)","v":0},{"$f":"IF(H258>2,H258*5+F258+J258,H258*5)","v":0},null,"No",{"$f":"IF(AND(G258>0),\"No\",\"Yes\")","v":"Yes"}]
[1,null,null,null,null,null,null,null,null,0,0,null,"No","Yes"]
[1,null,null,null,null,null,null,null,null,0,0,null,"No","Yes"]
[1,null,null,null,null,null,null,null,null,0,0,null,"No","Yes"]
[1,null,null,null,null,null,null,null,null,0,0,null,"No","Yes"]
[1,null,null,null,null,null,null,null,null,0,0,null,"No","Yes"]
[1,null,null,null,null,null,null,null,null,0,0,null,{"$f":"IF(AND(H264>2,L264=\"Y\"),\"Yes\",\"No\")","v":"No"},"Yes"]
[1,null,null,null,null,null,null,null,null,0,0,null,"No","Yes"]
[1,null,null,null,null,null,null,null,null,0,0,null,"No","Yes"]
[1,null,null,null,null,null,null,null,null,0,0,null,"No","Yes"]
[1,null,null,null,null,null,null,null,null,0,0,null,"No","Yes"]
[1,null,null,null,null,null,null,null,null,0,0,null,"No","Yes"]
[1,null,null,null,null,null,null,null,null,0,0,null,"No","Yes"]
[1,null,null,null,null,null,null,null,null,0,0,null,"No","Yes"]
[1,null,null,null,null,null,null,null,null,0,0,null,"No","Yes"]
[1,null,null,null,null,null,null,null,null,0,0,null,"No","Yes"]
[1,null,null,null,null,null,null,null,null,0,0,null,"No","Yes"]
[1,null,null,null,null,null,null,null,null,0,0,null,"No","Yes"]
[1,null,null,null,null,null,null,null,null,0,0,null,"No","Yes"]
[1,null,null,null,null,null,null,null,null,0,0,null,"No","Yes"]
[1,null,null,null,null,null,null,null,null,0,0,null,"No","Yes"]
[1,null,null,null,null,null,null,null,null,0,0,null,"No","Yes"]
[1,null,null,null,null,null,null,null,null,0,0,null,"No","Yes"]
[1,null,null,null,null,null,null,null,null,0,0,null,"No","Yes"]
[1,null,null,null,null,null,null,null,null,0,0,null,"No","Yes"]
[1,null,null,null,null,null,null,null,null,0,0,null,"No","Yes"]
[1,null,null,null,null,null,null,null,null,0,0,null,"No","Yes"]
[1,null,null,null,null,null,null,null,null,0,0,null,"No","Yes"]
[1,null,null,null,null,null,null,null,null,0,0,null,"No","Yes"]
[1,null,null,null,null,null,null,null,null,0,0,null,"No","Yes"]
[1,null,null,null,null,null,null,null,null,0,0,null,"No","Yes"]
[1,null,null,null,null,null,null,null,null,0,0,null,"No","Yes"]
[1,null,null,null,null,null,null,null,null,0,0,null,"No","Yes"]
[1,null,null,null,null,null,null,null,null,0,0,null,"No","Yes"]
[1,null,null,null,null,null,null,null,null,0,0,null,"No","Yes"]
[1,null,null,null,null,null,null,null,null,0,0,null,"No","Yes"]
[1,null,null,null,null,null,null,null,null,0,0,null,"No","Yes"]
[1,null,null,null,null,null,null,null,null,0,0,null,"No","Yes"]

{"sheet":"Sort Sheet UPDIF","index":5,"n_rows":1,"n_cols":15,"rows_kept":1,"cut":false,"hidden":false,"merged":[]}
["Level ","Handler (First and Last Name)","Dog","UDT #          (this is the UpDog Team # not the competitor #)","Finishing time (nearest 100th of a second - Use 0 if they Did Not Finish)","# of seconds remaining","# of Misses","# of zone catches","Sweet Shot Double Shot Completed Successfully?","SSDS Points","Total for Zones","Were all throws thrown as Rollers           Y or N?","High Roller","Golden Receiver","Division"]

{"sheet":"Walk Ups","index":6,"n_rows":3,"n_cols":4,"rows_kept":3,"cut":false,"hidden":true,"merged":[]}
["Record Walk Up Team here - please ensure accurate spelling - UDT temp # is handler last name, dog name, event date"]
["Handler Name","Dog's Name","Temporary UDT #","Email address or Phone number"]
["Example Williams","Spot","WilliamsSpot3815","Williams111@email.com"]